[Event "44th Chess Olympiad Open 2022"]
[Site "Chennai"]
[Date "2022.08.07"]
[Round "9.33"]
[White "Chavez, Ricardo Ernesto"]
[Black "Pasko, Llambi"]
[Result "0-1"]
[WhiteElo "2179"]
[BlackElo "2418"]
[Annotator "TA"]
[PlyCount "72"]
[EventDate "2022.??.??"]
[TimeControl "60"]

{[%evp 17,72,-15,-10,-9,-18,-8,11,0,0,-22,0,-26,-22,-21,-10,-34,-6,-25,-16,-32,
-29,-50,-30,-35,-27,-36,7,-13,-21,-12,-15,-57,-18,-49,-50,-133,-126,-133,-49,
-41,-52,-52,-56,-65,-50,-289,-263,-487,-338,-860,-702,-5689,-5524,-2883,-1379,
-2619,-2313]} 1. e4 {[%emt 0:00:02]} e5 {[%emt 0:00:04]} 2. Nf3 {[%emt 0:00:09]
} Nc6 {[%emt 0:00:05]} 3. Bb5 {[%emt 0:00:06][%cal Yf1b5,Yb5a4,Ya4b3]} a6 {
[%emt 0:00:15]} 4. Ba4 {[%emt 0:00:08]} Nf6 {[%emt 0:00:24]} 5. Qe2 {[%emt 0:
00:08]} b5 {[%emt 0:00:27]} 6. Bb3 {[%emt 0:00:06]} Bc5 {[%emt 0:00:12]} 7. c3
{[%emt 0:00:09]} d6 {[%emt 0:00:42]} 8. O-O {[%emt 0:00:54]} O-O {[%emt 0:00:
26]} 9. d3 {[%emt 0:00:20]} h6 {[%emt 0:02:07]} 10. Be3 {[%emt 0:00:00] C77:
Ruy Lopez: 3...a6 4 Ba4 Nf6, unusual lines.} Bxe3 {[%emt 0:03:30]} 11. fxe3 {
[%emt 0:00:11]} Be6 {[%emt 0:01:29]} 12. Nbd2 {[%emt 0:00:31] The position is
equal.} Bxb3 {[%emt 0:04:02] [#]} 13. Nxb3 $146 {[%emt 0:00:30]} ({Predecessor:
} 13. axb3 d5 14. exd5 Nxd5 15. g3 Qd7 16. b4 Nb6 17. Ne4 Na4 18. b3 f5 19.
bxa4 fxe4 20. dxe4 bxa4 21. Rxa4 {1-0 (32) Zhou,L (2186) -Rakhmatullaev,A 
(1921) Santiago de Compostela 2018}) 13... a5 {[%emt 0:00:56]} 14. a3 {[%emt 0:
11:11]} Rb8 {[%emt 0:08:16]} 15. Rad1 {[%emt 0:01:48]} Nd7 {[%emt 0:05:30]} 16.
g4 {[%emt 0:16:57]} g6 {[%emt 0:14:42]} 17. Qg2 {[%emt 0:00:00]} Qe7 {[%emt 0:
04:27]} 18. Kh1 {[%emt 0:00:00]} Kg7 {[%emt 0:03:09]} 19. Rf2 {[%emt 0:00:00]}
Rh8 {[%emt 0:02:29]} 20. Rdf1 {[%emt 0:00:00]} Rbf8 {[%emt 0:00:25]} 21. Nc1 {
[%emt 0:00:00]} b4 {[%emt 0:02:13]} 22. axb4 {[%emt 0:00:00]} axb4 {[%emt 0:00:
04]} 23. Ne2 {[%emt 0:05:31]} Nc5 {[%emt 0:02:43]} 24. Rd1 {[%emt 0:09:50]} Qe6
{[%emt 0:06:47]} 25. c4 {[%emt 0:11:33]} b3 {[%emt 0:00:00]} 26. Nh4 {[%emt 0:
14:06] [#]} (26. Nc3 $15 Nb4 27. Ne1) 26... Nb4 $1 $17 {[%emt 0:01:07]} 27. Nc1
{[%emt 0:08:50]} ({Not} 27. Nf5+ $2 Kh7 28. Nc1 gxf5 $19) 27... Ra8 {[%emt 0:
02:36]} (27... Qe7 $17 28. Nf3 Qe6) 28. d4 $15 {[%emt 0:04:04]} exd4 {[%emt 0:
05:22]} 29. exd4 {[%emt 0:02:25]} Nxe4 {[%emt 0:00:00]} 30. Re2 {[%emt 0:01:01]
} Rhe8 {[%emt 0:00:06] White must now prevent .. .Ra1.0x0.00144d15252ddp-1022s
more active pieces.} 31. Rde1 $2 {[%emt 0:10:24] White does not recover from
this.} (31. Nf5+ $1 $15 Kh8 32. d5) 31... Ra1 {[%emt 0:00:25][%cal Ye6c4]} 32.
d5 $2 {[%emt 0:04:18]} (32. Nf5+ Kh7 33. Ne3) 32... Qe7 {[%emt 0:02:07]} 33.
Qh3 {[%emt 0:00:52] [#]} (33. Nf3 Nc2 34. Rf1 (34. Rxe4 $2 Nxe1 35. Rxe7 Rxe7
$19)) 33... Nf2+ $1 {[%emt 0:04:43] Black is clearly winning.} 34. Rxf2 {
[%emt 0:00:20]} (34. Kg2 Nxh3) 34... Qxe1+ {[%emt 0:00:05]} 35. Rf1 {[%emt 0:
00:04]} Qe4+ {[%emt 0:01:09]} (35... Rxc1 $142 36. Rxe1 Rexe1+ 37. Kg2 Re2+ 38.
Kg3 Rxb2) 36. Ng2 {[%emt 0:00:06] [#]} Nd3 $1 {[%emt 0:00:30] Weighted Error
Value: White=0.92/Black=0.36} 0-1

[Event "44th Chess Olympiad Open 2022"]
[Site "Chennai"]
[Date "2022.08.07"]
[Round "9.34"]
[White "Keinanen, Toivo"]
[Black "Lim, Zhuo Ren"]
[Result "1-0"]
[WhiteElo "2477"]
[BlackElo "2318"]
[Annotator "TA"]
[PlyCount "83"]
[EventDate "2022.??.??"]
[TimeControl "60"]

{[%evp 11,83,-2,2,0,-3,-12,10,8,7,8,13,0,0,0,5,14,0,0,30,6,37,27,78,87,118,118,
219,231,231,224,228,211,224,209,229,212,230,213,214,208,302,299,292,287,373,
375,386,383,423,431,549,509,536,532,528,544,504,519,511,445,443,409,474,396,
439,439,466,477,638,545,648,658,671,617]} 1. d4 {[%emt 0:00:05]} Nf6 {[%emt 0:
00:00]} 2. Nf3 {[%emt 0:00:00]} e6 {[%emt 0:00:19]} 3. e3 {[%emt 0:00:01]} d5 {
[%emt 0:00:45]} 4. Bd3 {[%emt 0:00:03]} c5 {[%emt 0:02:32]} 5. c3 {[%emt 0:00:
00]} Nbd7 {[%emt 0:02:32]} 6. Nbd2 {[%emt 0:00:57]} b6 {[%emt 0:01:34]} 7. O-O
{[%emt 0:02:24] D05: Colle System with ...e6.} Bb7 {[%emt 0:00:12]} 8. Ne5 {
[%emt 0:00:21]} Nxe5 {[%emt 0:06:14]} 9. dxe5 {[%emt 0:00:02] The position is
equal.} Nd7 {[%emt 0:00:08]} 10. f4 {[%emt 0:00:09]} Be7 {[%emt 0:00:58]} (
10... c4 $5 {[%cal Rc4d3]} 11. Bc2 Qc7 $11) 11. Qh5 {[%emt 0:17:08]} g6 {
[%emt 0:05:42]} 12. Qh6 {[%emt 0:07:07]} Bf8 {[%emt 0:04:25] Against Qg7} 13.
Qh3 {[%emt 0:00:06]} c4 {[%emt 0:04:35]} 14. Bc2 {[%emt 0:01:33] [#]} Nc5 $146
{[%emt 0:00:26]} ({Predecessor:} 14... Qc7 15. Nf3 Be7 16. Nd4 a6 17. Bd2 Nc5
18. Be1 Rd8 19. Bh4 Bxh4 20. Qxh4 Qe7 {½-½ (32) Koellner,C (2111)-Leck,J 
(1975) Hofheim 2016}) 15. e4 {[%emt 0:07:03] Threatening f5.} Bg7 {[%emt 0:00:
00]} 16. exd5 {[%emt 0:11:39]} Qxd5 {[%emt 0:01:12]} (16... Bxd5 $11 {remains
equal.} 17. b3 cxb3 18. axb3 a5) 17. b4 $16 {[%emt 0:01:21] White stays
focused until the end.} cxb3 {[%emt 0:03:23]} 18. axb3 {[%emt 0:00:04] Black
must now prevent b4.} a5 {[%emt 0:02:05]} (18... b5 $16) 19. Nc4 $18 {[%emt 0:
00:00]} Rd8 {[%emt 0:09:45]} 20. Nxb6 {[%emt 0:02:53]} Qc6 {[%emt 0:05:10]} 21.
Nc4 {[%emt 0:00:11]} a4 {[%emt 0:02:10]} 22. Na5 {[%emt 0:03:12]} ({Less
strong is} 22. bxa4 Ba6 $16) 22... Qa6 {[%emt 0:05:40]} 23. Nxb7 {[%emt 0:00:
00]} Qxb7 {[%emt 0:00:44]} 24. bxa4 {[%emt 0:00:19]} O-O {[%emt 0:01:05]} 25.
Be3 {[%emt 0:01:06]} Rc8 {[%emt 0:00:24]} (25... Qc7 $142 26. Bd4 Rb8) 26. Bd4
{[%emt 0:01:01]} Rfd8 {[%emt 0:01:41]} 27. Rfb1 {[%emt 0:01:10] Against Qb2}
Qa6 {[%emt 0:01:07]} 28. Qe3 {[%emt 0:00:50] Prevents Qe2.} Bf8 {[%emt 0:00:17]
} 29. a5 {[%emt 0:00:36]} Rc6 {[%emt 0:01:37]} 30. Bd1 {[%emt 0:01:12][%cal
Yc2d1,Yd1f3,Yf3e2]} Rdc8 {[%emt 0:04:30]} 31. Bf3 {[%emt 0:01:10]} R6c7 {
[%emt 0:00:18]} 32. Rb6 {[%emt 0:00:15]} Qc4 {[%emt 0:01:43]} 33. Rb4 {[%emt 0:
02:29]} Qa6 {[%emt 0:01:53]} 34. Be2 {[%emt 0:00:34]} Qc6 {[%emt 0:00:00]} 35.
Rb6 {[%emt 0:00:43]} Qd5 {[%emt 0:00:53]} 36. Rb5 {[%emt 0:04:33]} Qc6 {
[%emt 0:01:18]} 37. Qf3 {[%emt 0:01:49]} Qd7 {[%emt 0:00:45]} 38. h3 {[%emt 0:
00:00] White is clearly winning.} h5 {[%emt 0:07:47]} 39. Kh2 {[%emt 0:01:05]}
h4 {[%emt 0:00:34]} 40. Qe3 {[%emt 0:00:35]} Qc6 {[%emt 0:01:10]} 41. a6 {
[%emt 0:33:45]} Ra8 {[%emt 0:35:29]} 42. Raa5 {[%emt 0:00:00] Weighted Error
Value: White=0.07 (flawless) /Black=0.28 (precise)} 1-0

[Event "44th Chess Olympiad Open 2022"]
[Site "Chennai"]
[Date "2022.08.07"]
[Round "9.34"]
[White "Sipila, Vilka"]
[Black "Tan, Jun Ying"]
[Result "1-0"]
[WhiteElo "2416"]
[BlackElo "2191"]
[Annotator "TA"]
[PlyCount "55"]
[EventDate "2022.??.??"]
[TimeControl "60"]

{[%evp 11,55,38,58,20,24,57,28,24,23,38,63,37,63,66,49,14,19,0,89,89,66,60,91,
64,64,32,144,0,641,425,716,719,685,664,280,607,29989,29990,29992,29993,29993,
29994,29994,29995,29995,1631]} 1. d4 {[%emt 0:00:03]} Nf6 {[%emt 0:00:20]} 2.
c4 {[%emt 0:00:10]} e5 {[%emt 0:01:03]} 3. dxe5 {[%emt 0:00:14]} Ng4 {[%emt 0:
00:00]} 4. Bf4 {[%emt 0:01:39]} Bb4+ {[%emt 0:00:11]} 5. Nd2 {[%emt 0:00:24]}
d6 {[%emt 0:00:13]} 6. exd6 {[%emt 0:23:29]} Qf6 {[%emt 0:00:07]} (6... Qh4 $2
7. g3 Qf6 8. dxc7 $18) 7. Nh3 {[%emt 0:00:27] has lost popularity (7.e3). A52:
Budapest Gambit.} Nxf2 {[%emt 0:00:14]} 8. Kxf2 {[%emt 0:01:29]} Bxh3 {[%emt 0:
00:00]} 9. g3 {[%emt 0:02:55] White has an edge.} Bf5 {[%emt 0:00:38]} 10. e4 {
[%emt 0:07:53]} Bc5+ {[%emt 0:00:29]} 11. Kg2 {[%emt 0:01:13] [#]} Bd7 $146 {
[%emt 0:00:20]} ({Predecessor:} 11... Bg6 12. e5 Qf5 13. Be2 h5 14. Bf3 Qc8 15.
Nb3 cxd6 16. Qd5 Nc6 17. exd6 Bb6 {1-0 (31) Gerard,N (2271)-Egreteau,E (2025)
Sautron 2001}) 12. dxc7 {[%emt 0:07:36]} Na6 {[%emt 0:00:13]} 13. Nb3 {[%emt 0:
00:00]} (13. Nf3 $5 {[%cal Rf3e5]}) 13... Bc6 $1 {[%emt 0:38:37]} (13... Qe6 $2
14. Nxc5 Nxc5 15. Qd5 $18) 14. Be2 {[%emt 0:00:38]} g5 {[%emt 0:14:54]} (14...
O-O $11 {remains equal.}) 15. Nxc5 $16 {[%emt 0:07:35]} Nxc5 {[%emt 0:00:07]}
16. Be3 {[%emt 0:00:14]} Bxe4+ {[%emt 0:04:25]} 17. Bf3 {[%emt 0:01:15]} Qxb2+
{[%emt 0:00:24]} 18. Kh3 {[%emt 0:09:47] [#] Threatens to win with Bxe4.} g4+ {
[%emt 0:21:17]} (18... Rg8 $1 $14 19. Bd4 (19. Bxc5 g4+ 20. Bxg4 Bg2+ 21. Kh4
Qf6+ 22. Kh5 Qg5#) 19... Bxf3 20. Bxb2 Bxd1 21. Raxd1 Ne6) 19. Bxg4 {[%emt 0:
00:00]} (19. Kxg4 $16 Qf6 20. Bxe4 (20. Bxc5 $2 Bxf3+ 21. Qxf3 Rg8+ 22. Kh3
Qxf3 $19) 20... h5+ 21. Kh3 Qe6+ {[#]} 22. Bf5 $1 Qxf5+ 23. Kg2 Qe4+ 24. Qf3
Qxf3+ 25. Kxf3) 19... Bg2+ $2 {[%emt 0:05:14]} (19... h5 $1 $11 {and Black is
okay.} 20. Be2 (20. Bxc5 $2 {gets mated.} Bg2+ 21. Kh4 Qf6#) 20... Bf5+ 21. Kg2
Be4+ 22. Kh3 Bf5+ 23. Kg2 Be4+ 24. Kh3) 20. Kh4 $18 {[%emt 0:00:05] Black must
now prevent Qd6.} Bxh1 {[%emt 0:04:36]} (20... O-O $142 21. Bd4 (21. Bxc5 $2
Qf6+ 22. Kh5 Qg6+ 23. Kh4 Qh6+ 24. Bh5 Qf6+ 25. Kg4 h6 $19) 21... Qb6) 21. Bxc5
{[%emt 0:08:34][%csl Gg4][%cal Rd1d7]} ({Not} 21. Qxh1 Ne6 $14) 21... Qf6+ {
[%emt 0:01:47]} 22. Kh3 {[%emt 0:00:05][%csl Gd1][%cal Rg4d7]} Qh6+ {[%emt 0:
00:52]} 23. Bh5 {[%emt 0:00:06] Intending Qg4 and mate. Chess con chili. A
strong pair of Bishops.} Be4 {[%emt 0:02:37]} 24. Qg4 {[%emt 0:02:33] Against
Bf5. White mates.} Qc6 {[%emt 0:02:15]} 25. Re1 {[%emt 0:00:14]} Qxc5 {[%emt 0:
00:58]} 26. Qe6+ {[%emt 0:00:13]} Qe7 {[%emt 0:00:00]} 27. c8=Q+ {[%emt 0:00:
08]} Rxc8 {[%emt 0:00:30]} 28. Qxc8+ {[%emt 0:00:00] Weighted Error Value:
White=0.24 (precise) /Black=0.74} 1-0

[Event "44th Chess Olympiad Open 2022"]
[Site "Chennai"]
[Date "2022.08.07"]
[Round "9.34"]
[White "Wong, Yinn Long"]
[Black "Sklyarov, Dmitry V."]
[Result "1-0"]
[WhiteElo "2381"]
[BlackElo "2474"]
[Annotator "TA"]
[PlyCount "81"]
[EventDate "2022.??.??"]
[TimeControl "60"]

{[%evp 16,81,18,18,16,13,17,21,22,2,0,1,2,0,10,0,46,36,223,225,206,196,297,292,
393,406,533,553,739,652,657,554,557,545,802,794,811,810,785,800,793,777,1074,
1048,2190,1061,1081,1037,1039,1072,1415,808,1894,1754,1230,1327,1192,1092,1718,
1567,860,787,1646,1147,29976,29965,5269,3590]} 1. e4 {[%emt 0:00:06]} g6 {
[%emt 0:00:04]} 2. Nc3 {[%emt 0:02:06]} Bg7 {[%emt 0:00:17]} 3. d4 {[%emt 0:00:
00]} c6 {[%emt 0:00:47]} 4. Nf3 {[%emt 0:00:13]} d5 {[%emt 0:00:07]} 5. h3 {
[%emt 0:00:10]} dxe4 {[%emt 0:01:06]} 6. Nxe4 {[%emt 0:00:07]} Nf6 {[%emt 0:00:
00]} 7. Nxf6+ {[%emt 0:00:31]} exf6 {[%emt 0:00:05]} 8. Bd3 {[%emt 0:00:52]}
O-O {[%emt 0:00:25]} 9. O-O {[%emt 0:00:04] Active counter play!} a5 {[%emt 0:
00:00] B15: Caro-Kann: 3 Nc3:3...g6 and 3...dxe4 4 Nxe4 Nf6 5 Nxf6+ exf6.} 10.
Re1 {[%emt 0:01:07]} Na6 {[%emt 0:00:14][%cal Yb8a6,Ya6b4,Yb4d3]} 11. c4 {
[%emt 0:03:36] [#]} Nb4 $146 {[%emt 0:05:56] The position is equal.} ({
Predecessor:} 11... Nc7 12. Bf1 Ne6 13. d5 cxd5 14. cxd5 Nc5 15. Be3 Ne4 16.
Nd2 {½-½ (16) Oratovsky,M (2423)-Martinez Fernandez,A (2354) Elgoibar 2019})
12. Bf4 {[%emt 0:06:59]} Nxd3 {[%emt 0:01:54]} 13. Qxd3 {[%emt 0:00:02]} Bf5 {
[%emt 0:01:35]} 14. Qb3 {[%emt 0:03:34]} Qd7 {[%emt 0:06:01]} 15. Rad1 {
[%emt 0:01:26]} b5 {[%emt 0:08:33]} (15... Rfe8 $11 {is superior.}) 16. cxb5 $1
$14 {[%emt 0:04:36] Black must now prevent d5.} Be6 {[%emt 0:01:04] Inhibits
d5. This move loses the game for Black.} (16... a4 $14 17. Qb4 cxb5) 17. d5 $1
$18 {[%emt 0:08:54]} cxd5 {[%emt 0:09:00]} 18. a4 {[%emt 0:05:53]} d4 {[%emt 0:
00:00]} (18... Rfe8 {was called for.} 19. Nd4 Bf8) 19. Qa3 {[%emt 0:07:37]} ({
Weaker is} 19. Rxd4 Qxd4 20. Nxd4 Bxb3 21. Nxb3 f5 $16) 19... Qb7 {[%emt 0:00:
00]} 20. Nxd4 {[%emt 0:01:35]} Bd5 {[%emt 0:02:13]} 21. Re7 {[%emt 0:03:10]}
Qb6 {[%emt 0:00:40]} 22. Bc7 {[%emt 0:01:43]} Qb7 {[%emt 0:00:06] [#]} 23. Bxa5
$1 {[%emt 0:01:49]} Qc8 {[%emt 0:00:37]} 24. Bb4 {[%emt 0:12:55]} Rd8 {[%emt 0:
00:32]} 25. Nc6 {[%emt 0:03:14]} Bxc6 {[%emt 0:00:07]} 26. Rxd8+ {[%emt 0:00:
41]} Qxd8 {[%emt 0:00:01]} 27. bxc6 {[%emt 0:00:07]} Qd1+ {[%emt 0:00:00]} 28.
Kh2 {[%emt 0:01:38] [#] aiming for Qe3.} Qc1 {[%emt 0:03:50]} 29. Qb3 {[%emt 0:
02:29]} Rf8 {[%emt 0:03:05]} 30. Bc3 {[%emt 0:03:28]} (30. Rb7 $142) 30... Bh6
{[%emt 0:00:48]} 31. Qd5 {[%emt 0:01:43]} Qf4+ {[%emt 0:03:58]} 32. Kg1 {
[%emt 0:00:31]} Qxa4 {[%emt 0:00:08]} 33. Bxf6 {[%emt 0:02:19]} Qf4 {[%emt 0:
01:29]} 34. Bc3 {[%emt 0:00:40]} Bg7 {[%emt 0:00:41]} 35. Re4 {[%emt 0:00:00]}
Qc1+ {[%emt 0:00:32]} 36. Re1 {[%emt 0:00:07]} Qc2 {[%emt 0:00:10]} 37. Bxg7 {
[%emt 0:00:14]} Kxg7 {[%emt 0:00:02]} 38. b4 {[%emt 0:00:09][%cal Yb2b4,Yb4b5]}
Ra8 {[%emt 0:01:18]} 39. b5 {[%emt 0:00:32][%cal Yc6c7] Strongly threatening
c7!} Ra2 {[%emt 0:00:23]} 40. Qd4+ {[%emt 0:02:11]} Kh6 {[%emt 0:00:06]} 41.
Qe3+ {[%emt 0:30:51] Weighted Error Value: White=0.12 (very precise) /Black=0.
49} 1-0

[Event "44th Chess Olympiad Open 2022"]
[Site "Chennai"]
[Date "2022.08.07"]
[Round "9.34"]
[White "Poh, Yu Tian"]
[Black "Koykka, Pekka"]
[Result "1-0"]
[WhiteElo "2118"]
[BlackElo "2361"]
[Annotator "RC"]
[PlyCount "101"]
[EventDate "2022.??.??"]
[TimeControl "60"]

1. e4 {[%emt 0:00:05]} e6 {[%emt 0:00:11]} 2. d4 {[%emt 0:00:04]} d5 {[%emt 0:
00:00]} 3. Nc3 {[%emt 0:00:04]} Bb4 {[%emt 0:00:10]} 4. e5 {[%emt 0:00:04]} c5
{[%emt 0:00:15]} 5. a3 {[%emt 0:00:08]} Bxc3+ {[%emt 0:00:08]} 6. bxc3 {
[%emt 0:00:03]} Qa5 {[%emt 0:00:11]} 7. Bd2 {[%emt 0:00:07]} Qa4 {[%emt 0:00:
00]} 8. Qb1 {[%emt 0:00:04]} c4 {[%emt 0:01:08]} 9. h4 {[%emt 0:00:05]} Nc6 {
[%emt 0:01:34]} 10. h5 {[%emt 0:00:07]} h6 {[%emt 0:00:44]} 11. Ne2 {[%emt 0:
00:00]} Bd7 {[%emt 0:06:05]} 12. Nf4 {[%emt 0:02:10]} O-O-O {[%emt 0:01:13]}
13. g3 {[%emt 0:02:40]} Nge7 {[%emt 0:12:11]} 14. Bh3 {[%emt 0:02:02]} Kb8 {
[%emt 0:00:42]} 15. O-O {[%emt 0:01:59]} Nc8 {[%emt 0:15:42]} 16. Qb2 {[%emt 0:
00:00]} Nb6 {[%emt 0:08:24]} 17. Rfb1 {[%emt 0:01:27]} Rhe8 {[%emt 0:05:49]}
18. Ng2 {[%emt 0:02:21]} Ka8 {[%emt 0:02:01]} 19. Ne3 {[%emt 0:02:22]} Re7 {
[%emt 0:15:32]} 20. f4 {[%emt 0:05:39]} f6 {[%emt 0:05:52]} 21. Kg2 {[%emt 0:
00:00]} Be8 {[%emt 0:06:42]} 22. Bg4 {[%emt 0:06:19]} fxe5 {[%emt 0:05:53]} 23.
fxe5 {[%emt 0:00:12]} Qa5 {[%emt 0:00:35]} 24. Qc1 {[%emt 0:15:36]} Na4 {
[%emt 0:01:28]} 25. Bf3 {[%emt 0:02:25]} Rf7 {[%emt 0:02:11]} 26. Qe1 {[%emt 0:
00:00]} Rf8 {[%emt 0:00:24]} 27. Qe2 {[%emt 0:03:54]} Bf7 {[%emt 0:03:00]} 28.
Rf1 {[%emt 0:04:48]} Bg8 {[%emt 0:00:11]} 29. Kh2 {[%emt 0:02:10]} Rfe8 {
[%emt 0:00:28]} 30. Bg4 {[%emt 0:02:23]} Nb6 {[%emt 0:01:51]} 31. Bf3 {[%emt 0:
00:00]} Qa4 {[%emt 0:00:44]} 32. Bg2 {[%emt 0:02:20]} Re7 {[%emt 0:00:39]} 33.
Be1 {[%emt 0:02:16]} Nd7 {[%emt 0:00:36]} 34. g4 {[%emt 0:01:45]} Rf8 {[%emt 0:
00:00]} 35. Bh4 {[%emt 0:03:43]} Ree8 {[%emt 0:00:04]} 36. Rxf8 {[%emt 0:02:23]
} Nxf8 {[%emt 0:00:05]} 37. Qf1 {[%emt 0:05:13]} Qa5 {[%emt 0:00:28]} 38. Qe1 {
[%emt 0:01:08]} Nh7 {[%emt 0:00:17]} 39. a4 {[%emt 0:03:47]} Rc8 {[%emt 0:00:
00]} 40. Nd1 {[%emt 0:01:54]} Rf8 {[%emt 0:02:59]} 41. Nf2 {[%emt 0:32:52]} Bf7
{[%emt 0:02:07]} 42. Qe3 {[%emt 0:00:00]} Qb6 {[%emt 0:00:44]} 43. Qc1 {
[%emt 0:00:00]} Qc7 {[%emt 0:03:50]} 44. Nh3 {[%emt 0:00:00]} Bg8 {[%emt 0:00:
00]} 45. Qa3 {[%emt 0:00:00]} Rf7 {[%emt 0:06:05]} 46. Qc5 {[%emt 0:00:00]} Qb8
{[%emt 0:08:58]} 47. Kh1 {[%emt 0:00:00]} Qe8 {[%emt 0:00:47]} 48. a5 {[%emt 0:
00:00]} a6 {[%emt 0:00:07]} 49. Kg1 {[%emt 0:00:00]} Nf8 {[%emt 0:01:13]} 50.
Bg3 {[%emt 0:00:00]} Qd7 {[%emt 0:03:58]} 51. Kh2 {[%emt 0:00:45]} 1-0

[Event "44th Chess Olympiad Open 2022"]
[Site "Chennai"]
[Date "2022.08.07"]
[Round "9.35"]
[White "Tin, Jingyao"]
[Black "Lee, Jun Hyeok"]
[Result "0-1"]
[WhiteElo "2552"]
[BlackElo "2390"]
[Annotator "TA"]
[PlyCount "106"]
[EventDate "2022.??.??"]
[TimeControl "60"]

{[%evp 26,106,0,0,0,0,16,0,0,-4,0,-7,-15,-18,0,0,0,0,0,0,0,-4,-31,-35,-13,-31,
-22,-43,-45,-50,0,0,0,-12,0,-23,-36,-54,-31,-114,-123,-115,-152,-185,-186,-178,
-172,-197,-98,-378,-378,-378,-378,-420,-397,-406,-387,-539,-506,-832,-836,-743,
-619,-865,-858,-2614,-2460,-2610,-2379,-29936,-11304,-29980,-29981,-29981,
-29982,-29983,-29984,-29984,-29985,-29985,-29986,-29989,-29990]} 1. d4 {
[%emt 0:00:13]} Nf6 {[%emt 0:00:19]} 2. c4 {[%emt 0:00:23]} e6 {[%emt 0:00:14]}
3. Nf3 {[%emt 0:03:33]} d5 {[%emt 0:01:32]} 4. Nc3 {[%emt 0:00:45]} c5 {
[%emt 0:02:10]} 5. cxd5 {[%emt 0:01:32]} Nxd5 {[%emt 0:00:27]} 6. e4 {[%emt 0:
00:00]} Nxc3 {[%emt 0:00:06]} 7. bxc3 {[%emt 0:00:07]} cxd4 {[%emt 0:00:03]} 8.
cxd4 {[%emt 0:00:11]} Bb4+ {[%emt 0:00:06]} 9. Bd2 {[%emt 0:00:12]} Bxd2+ {
[%emt 0:00:04]} 10. Qxd2 {[%emt 0:00:04]} O-O {[%emt 0:00:02]} 11. Bc4 {
[%emt 0:00:41]} Nd7 {[%emt 0:00:10][%cal Yb8d7,Yd7f6,Yf6e4]} 12. O-O {[%emt 0:
00:38]} b6 {[%emt 0:00:05]} 13. Rad1 {[%emt 0:00:53]} Bb7 {[%emt 0:00:00]} 14.
Rfe1 {[%emt 0:00:07]} Rc8 {[%emt 0:00:06] D41: Queen's Gambit Declined:
Semi-Tarrasch with 5 cxd5.} 15. Bb3 {[%emt 0:01:03]} Re8 {[%emt 0:00:00]} 16.
Re3 {[%emt 0:01:38]} Nf6 {[%emt 0:04:18] The position is equal.} 17. d5 {
[%emt 0:00:06]} exd5 {[%emt 0:01:10]} 18. e5 {[%emt 0:00:09]} Ne4 {[%emt 0:00:
00]} 19. Qe1 {[%emt 0:00:16] Rxe4 is the strong threat.} Qc7 {[%emt 0:07:23]}
20. Nd4 {[%emt 0:01:00]} Qc5 {[%emt 0:04:35]} (20... Qxe5 21. f3 $14) 21. h4 {
[%emt 0:03:46] [#]} b5 $146 {[%emt 0:11:32]} (21... Rxe5 22. f3 $16) ({
Predecessor:} 21... h6 22. Kh2 Nc3 23. Rd2 Ne4 24. Rd1 Nc3 25. Rd2 Ne4 {
½-½ (25) Lazavik,D (2439)-Tsaruk,M (2301) Minsk 2021}) 22. a3 {[%emt 0:19:14]
} Qb6 {[%emt 0:05:08]} (22... Rxe5 23. f3 $16) 23. f3 {[%emt 0:19:57]} Nc5 {
[%emt 0:00:11]} 24. Kh1 {[%emt 0:00:34]} g6 {[%emt 0:06:41] Against Nf5} 25. h5
{[%emt 0:10:08]} Ne6 {[%emt 0:02:14]} 26. Qh4 {[%emt 0:00:48]} Nxd4 {[%emt 0:
00:00]} 27. Rxd4 {[%emt 0:03:02]} Rc1+ {[%emt 0:02:18]} ({Black should play} 
27... Re6 $15) 28. Kh2 $11 {[%emt 0:00:36]} a5 {[%emt 0:02:45]} 29. Qf4 {
[%emt 0:07:38]} Qc5 {[%emt 0:03:52]} 30. Red3 {[%emt 0:04:28]} Re1 $36 {
[%emt 0:02:56] Black is pushing.} 31. hxg6 {[%emt 0:05:52]} hxg6 {[%emt 0:00:
46]} 32. Qh6 {[%emt 0:00:46]} (32. Qf6 $15 Re6 33. Qd8+ Qf8 34. Qxf8+ Kxf8 35.
f4) 32... Qf8 $1 $17 {[%emt 0:03:08] Really sharp!} (32... R8xe5 $6 33. Rh4 Rh5
34. Rxh5 gxh5 35. Bxd5 $1 Bxd5 36. Qg5+ Kf8 37. Rxd5 Qc7+ 38. f4 $11) 33. Qxf8+
{[%emt 0:01:06]} Kxf8 {[%emt 0:00:04]} 34. f4 {[%emt 0:00:05]} Re4 $1 {[%emt 0:
01:11]} 35. Rxe4 {[%emt 0:06:15]} (35. Bxd5 $2 Rxd4 36. Rxd4 Rd8 $19) 35...
dxe4 $19 {[%emt 0:00:03] Endgame KRB-KRB} 36. Rd6 {[%emt 0:00:05] [#]} e3 {
[%emt 0:12:53]} (36... Rc8 $1 $19 {has better winning chances. Strongly
threatening ...e3.} 37. Rb6 (37. Rd7 $2 e3 $19) 37... Rc3 38. Rxb5 {[#]} e3 $1)
37. Rd3 $2 {[%emt 0:02:56] This costs White the game.} (37. Kg3 $17) 37... e2 {
[%emt 0:06:56]} 38. Re3 {[%emt 0:00:28]} a4 {[%emt 0:01:32]} 39. Bc2 {[%emt 0:
03:43]} Rc8 {[%emt 0:00:09]} ({Inferior is} 39... g5 40. f5 $17) 40. Rxe2 {
[%emt 0:00:38]} Rc3 {[%emt 0:00:29] Inhibits Bd3.} 41. Rd2 {[%emt 0:08:07]}
Rxa3 {[%emt 0:02:28] White must now prevent ... Ra2.} 42. Rd7 {[%emt 0:08:49]}
(42. Bb1 $142) 42... Bc6 {[%emt 0:02:11]} 43. Rc7 {[%emt 0:00:17]} Bd5 {
[%emt 0:06:15] aiming for ...b4.} 44. g4 {[%emt 0:00:00]} Ra2 {[%emt 0:03:22]}
45. Kg3 {[%emt 0:01:53] [#]} Rxc2 $1 {[%emt 0:02:55]} 46. Rxc2 {[%emt 0:00:07]
KR-KB} (46. Ra7 Rc3+) 46... a3 {[%emt 0:00:00][%cal Ya4a3,Ya3a2]} 47. Rc8+ {
[%emt 0:05:01]} Kg7 {[%emt 0:00:00] ( -> ...a2)} 48. Rc7 {[%emt 0:02:21]} a2 {
[%emt 0:01:49] Black mates.} 49. Ra7 {[%emt 0:00:06]} b4 {[%emt 0:00:26][%cal
Yb5b4,Yb4b3,Yb3b2]} 50. f5 {[%emt 0:00:39]} gxf5 {[%emt 0:00:33]} 51. gxf5 {
[%emt 0:00:05]} b3 {[%emt 0:00:15]} 52. e6 {[%emt 0:00:10]} b2 {[%emt 0:00:33]}
53. Rxf7+ {[%emt 0:00:00]} Kg8 {[%emt 0:00:40] Weighted Error Value: White=0.
74/Black=0.08 (flawless)} 0-1